fUSD/lending_fUSD_20240425
["ID","MTS","AMOUNT","RATE_DAILY","PERIOD"]
[323570259,1714087873580,-500.0,0.0001178,2]
[323570260,1714087873590,-17729.1,0.0001178,2]
[323570261,1714087873600,-500.0,0.0001178,2]
[323570262,1714087873609,-3191.64,0.0001178,2]
[323570263,1714087873619,-932.44,0.0001178,2]
[323570264,1714087873628,-500.0,0.0001178,2]
[323570265,1714087873637,-500.0,0.0001178,2]
[323570266,1714087873647,-500.0,0.0001178,2]
[323570267,1714087873656,-500.0,0.0001178,2]
[323570268,1714087873666,-500.0,0.0001178,2]
[323570269,1714087873676,-500.0,0.0001178,2]
[323570270,1714087873687,-1393.76,0.0001178,2]
[323570271,1714087873698,-500.0,0.0001178,2]
[323570272,1714087873707,-1797.67,0.0001178,2]
[323570273,1714087873717,-500.0,0.0001178,2]
[323570274,1714087873726,-2894.38,0.0001178,2]
[323570275,1714087873736,-685.61,0.0001178,2]
[323570276,1714087873745,-500.0,0.0001178,2]
[323570277,1714087873755,-500.0,0.0001178,2]
[323570278,1714087873765,-596.95,0.0001178,2]
[323570279,1714087873775,-500.0,0.0001178,2]
[323570280,1714087873785,-625.31,0.0001178,2]
[323570281,1714087873794,-500.0,0.0001178,2]
[323570282,1714087873804,-500.0,0.0001178,2]
[323570283,1714087873813,-500.0,0.0001178,2]
[323570284,1714087873822,-500.0,0.0001178,2]
[323570285,1714087873832,-581.39,0.0001178,2]
[323570286,1714087873842,-1093.84,0.0001178,2]
[323570287,1714087873851,-500.0,0.0001178,2]
[323570288,1714087873861,-951.66,0.0001178,2]
[323570289,1714087873870,-500.0,0.0001178,2]
[323570290,1714087873880,-500.0,0.0001178,2]
[323570291,1714087873890,-500.0,0.0001178,2]
[323570292,1714087873899,-500.0,0.0001178,2]
[323570293,1714087873988,-500.0,0.0001178,2]
[323570294,1714087873998,-996.23,0.0001178,2]
[323570295,1714087874007,-500.0,0.0001178,2]
[323570296,1714087874016,-610.02,0.0001178,2]
[323570297,1714087874026,-500.0,0.0001178,2]
[323570298,1714087874037,-500.0,0.0001178,2]
[323570299,1714087874046,-500.0,0.0001178,2]
[323570300,1714087874055,-559.21,0.0001178,2]
[323570301,1714087874065,-500.0,0.0001178,2]
[323570302,1714087874074,-678.85,0.0001178,2]
[323570303,1714087874084,-1932.77,0.0001178,2]
[323570304,1714087874093,-263.02695047,0.0001178,2]
[323570305,1714087874102,-500.0,0.0001178,2]
[323570306,1714087874111,-500.0,0.0001178,2]
[323570307,1714087874120,-586.92,0.0001178,2]
[323570308,1714087874129,-972.5,0.0001178,2]
[323570309,1714087874138,-8383.29,0.0001178,2]
[323570310,1714087874147,-500.0,0.0001178,2]
[323570311,1714087874156,-500.0,0.0001178,2]
[323570312,1714087874165,-734.55,0.0001178,2]
[323570313,1714087874174,-500.0,0.0001178,2]
[323570314,1714087874183,-3544.9,0.0001178,2]
[323570315,1714087874192,-707.12,0.0001178,2]
[323570316,1714087874201,-500.0,0.0001178,2]
[323570317,1714087874210,-545.24,0.0001178,2]
[323570318,1714087874218,-500.0,0.0001178,2]
[323570319,1714087874227,-1195.08,0.0001178,2]
[323570320,1714087874236,-500.0,0.0001178,2]
[323570321,1714087874245,-500.0,0.0001178,2]
[323570322,1714087874255,-500.0,0.0001178,2]
[323570323,1714087874264,-690.24,0.0001178,2]
[323570324,1714087874273,-500.0,0.0001178,2]
[323570325,1714087874285,-500.0,0.0001178,2]
[323570326,1714087874295,-554.5,0.0001178,2]
[323570327,1714087874305,-500.0,0.0001178,2]
[323570328,1714087874315,-500.0,0.0001178,2]
[323570329,1714087874324,-500.0,0.0001178,2]
[323570330,1714087874334,-500.0,0.0001178,2]
[323570331,1714087874343,-4672.05,0.0001178,2]
[323570332,1714087874352,-500.0,0.0001178,2]
[323570333,1714087874362,-540.18,0.0001178,2]
[323570334,1714087874371,-500.0,0.0001178,2]
[323570335,1714087874380,-500.0,0.0001178,2]
[323570336,1714087874388,-970.32,0.0001178,2]
[323570337,1714087874398,-3464.87,0.0001178,2]
[323570338,1714087874409,-500.0,0.0001178,2]
[323570339,1714087874419,-5299.98,0.0001178,2]
[323570340,1714087874428,-500.0,0.0001178,2]
[323570341,1714087874437,-500.0,0.0001178,2]
[323570342,1714087874446,-1894.72,0.0001178,2]
[323570343,1714087874456,-500.0,0.0001178,2]
[323570344,1714087874466,-572.75,0.0001178,2]
[323570345,1714087874475,-1092.74,0.0001178,2]
[323570346,1714087874484,-749.4,0.0001178,2]
[323570347,1714087874493,-500.0,0.0001178,2]
[323570348,1714087874502,-500.0,0.0001178,2]
[323570349,1714087874511,-500.0,0.0001178,2]
[323570350,1714087874520,-507.01,0.0001178,2]
[323570351,1714087874530,-500.0,0.0001178,2]
[323570352,1714087874539,-1615.31,0.0001178,2]
[323570353,1714087874547,-500.0,0.0001178,2]
[323570354,1714087874557,-500.0,0.0001178,2]
[323570355,1714087874566,-3926.02,0.0001178,2]
[323570356,1714087874575,-605.77,0.0001178,2]
[323570357,1714087874583,-1013.07,0.0001178,2]
[323570358,1714087874593,-1038.07,0.0001178,2]
[323570359,1714087874602,-1406.82,0.0001178,2]
[323570360,1714087874611,-500.0,0.0001178,2]
[323570361,1714087874620,-701.26,0.0001178,2]
[323570362,1714087874629,-500.0,0.0001178,2]
[323570363,1714087874638,-500.0,0.0001178,2]
[323570364,1714087874648,-500.0,0.0001178,2]
[323570365,1714087874657,-500.0,0.0001178,2]
[323570366,1714087874666,-577.47,0.0001178,2]
[323570367,1714087874674,-860.6,0.0001178,2]
[323570368,1714087874685,-1401.53,0.0001178,2]
[323570369,1714087874695,-683.85,0.0001178,2]
[323570370,1714087874704,-500.0,0.0001178,2]
[323570371,1714087874714,-500.0,0.0001178,2]
[323570372,1714087874723,-549.58,0.0001178,2]
[323570373,1714087874732,-1187.74,0.0001178,2]
[323570374,1714087874742,-500.0,0.0001178,2]
[323570375,1714087874752,-2010.41,0.0001178,2]
[323570376,1714087874761,-1782.53,0.0001178,2]
[323570377,1714087874771,-917.5,0.0001178,2]
[323570378,1714087874781,-796.52,0.0001178,2]
[323570379,1714087874791,-227.76030345,0.0001178,2]
[323570380,1714087874801,-500.0,0.0001178,2]
[323570381,1714087874810,-1204.82,0.0001178,2]
[323570382,1714087874819,-500.0,0.0001178,2]
[323570383,1714087874829,-241.62382837,0.0001178,2]
[323570384,1714087874838,-500.0,0.0001178,2]
[323570385,1714087874846,-500.0,0.0001178,2]
[323570386,1714087874856,-1716.12,0.0001178,2]
[323570387,1714087874866,-500.0,0.0001178,2]
[323570388,1714087874875,-710.34,0.0001178,2]
[323570389,1714087874884,-500.0,0.0001178,2]
[323570390,1714087874893,-345.0,0.0001178,2]
[323570391,1714087874903,-792.09,0.0001178,2]
[323570392,1714087874912,-500.0,0.0001178,2]
[323570393,1714087874920,-3357.68,0.0001178,2]
[323570394,1714087874930,-500.0,0.0001178,2]
[323570395,1714087874939,-542.94,0.0001178,2]
[323570396,1714087874948,-500.0,0.0001178,2]
[323570397,1714087874957,-2748.61,0.0001178,2]
[323570398,1714087874966,-2200.4,0.0001178,2]
[323570399,1714087874975,-500.0,0.0001178,2]
[323570400,1714087874984,-500.0,0.0001178,2]
[323570401,1714087874993,-706.0,0.0001178,2]
[323570402,1714087875002,-647.56,0.0001178,2]
[323570403,1714087875011,-500.0,0.0001178,2]
[323570404,1714087875022,-500.0,0.0001178,2]
[323570405,1714087875034,-500.0,0.0001178,2]
[323570406,1714087875043,-500.0,0.0001178,2]
[323570407,1714087875053,-1319.76,0.0001178,2]
[323570408,1714087875063,-500.0,0.0001178,2]
[323570409,1714087875072,-4069.1,0.0001178,2]
[323570410,1714087875081,-648.48638055,0.0001178,2]
[323570411,1714087875091,-629.06,0.0001178,2]
[323570412,1714087875101,-500.0,0.0001178,2]
[323570413,1714087875110,-541.43,0.0001178,2]
[323570414,1714087875119,-500.0,0.0001178,2]
[323570415,1714087875128,-500.0,0.0001178,2]
[323570416,1714087875137,-4179.55,0.0001178,2]
[323570417,1714087875146,-1360.31,0.0001178,2]
[323570418,1714087875156,-2811.0,0.0001178,2]
[323570419,1714087875165,-500.0,0.0001178,2]
[323570420,1714087875174,-500.0,0.0001178,2]
[323570421,1714087875183,-216.64650639,0.0001178,2]
[323570422,1714087875193,-500.0,0.0001178,2]
[323570423,1714087875202,-500.0,0.0001178,2]
[323570424,1714087875211,-1065.38705671,0.00011813,2]
[323570425,1714087875220,-170.63737638,0.000119,2]
[323570426,1714087875229,-1000.0,0.00011904,2]
[323570427,1714087875238,-500.0,0.00011904,2]
[323570428,1714087875247,-345.0,0.0001192,2]
[323570429,1714087875257,-3167.66022678,0.00011935,2]
[323570430,1714087875266,-409.24902946,0.00012,2]
[323570431,1714087875275,-796.1133489,0.00012,2]
[323570432,1714087875285,-11413.58358067,0.00012,2]
[323570433,1714087875294,-3070.60191523,0.00012,2]
[323570434,1714087875303,-167.75,0.00012033,2]
[323570435,1714087875312,-150.0,0.00012039,2]
[323570436,1714087875321,-500.0,0.00012054,2]
[323570437,1714087875331,-1018.66,0.00012054,2]
[323570438,1714087875341,-525.95,0.00012054,2]
[323570439,1714087875350,-500.0,0.00012054,2]
[323570440,1714087875360,-500.0,0.00012054,2]
[323570441,1714087875369,-500.0,0.00012054,2]
[323570442,1714087875379,-500.0,0.00012054,2]
[323570443,1714087875388,-500.0,0.00012054,2]
[323570444,1714087875397,-500.0,0.00012054,2]
[323570445,1714087875406,-500.0,0.00012054,2]
[323570446,1714087875416,-500.0,0.00012054,2]
[323570447,1714087875425,-500.0,0.00012054,2]
[323570448,1714087875434,-500.0,0.00012054,2]
[323570449,1714087875444,-500.0,0.00012054,2]
[323570450,1714087875453,-500.0,0.00012054,2]
[323570451,1714087875462,-500.0,0.00012054,2]
[323570452,1714087875472,-1261.63,0.00012054,2]
[323570453,1714087875481,-500.0,0.00012054,2]
[323570454,1714087875490,-570.44,0.00012054,2]
[323570455,1714087875500,-500.0,0.00012054,2]
[323570456,1714087875509,-500.0,0.00012054,2]
[323570457,1714087875519,-500.0,0.00012054,2]
[323570458,1714087875528,-500.0,0.00012054,2]
[323570459,1714087875538,-500.0,0.00012054,2]
[323570460,1714087875547,-500.0,0.00012054,2]
[323570461,1714087875556,-500.0,0.00012054,2]
[323570462,1714087875565,-370.73974803,0.00012054,2]
[323570463,1714087875575,-286.5,0.00012054,2]
[323570464,1714087875584,-500.0,0.00012054,2]
[323570465,1714087875594,-500.0,0.00012054,2]
[323570466,1714087875604,-500.0,0.00012054,2]
[323570467,1714087875614,-500.0,0.00012054,2]
[323570468,1714087875626,-500.0,0.00012054,2]
[323570469,1714087875636,-500.0,0.00012054,2]
[323570470,1714087875646,-500.0,0.00012054,2]
[323570471,1714087875655,-500.0,0.00012054,2]
[323570472,1714087875666,-1255.99,0.00012054,2]
[323570473,1714087875676,-500.0,0.00012054,2]
[323570474,1714087875686,-500.0,0.00012054,2]
[323570475,1714087875698,-500.0,0.00012054,2]
[323570476,1714087875707,-500.0,0.00012054,2]
[323570477,1714087875718,-500.0,0.00012054,2]
[323570478,1714087875729,-500.0,0.00012054,2]
[323570479,1714087875739,-500.0,0.00012054,2]
[323570480,1714087875748,-500.0,0.00012054,2]
[323570481,1714087875758,-500.0,0.00012054,2]
[323570482,1714087875769,-500.0,0.00012054,2]
[323570483,1714087875779,-500.0,0.00012054,2]
[323570484,1714087875789,-500.0,0.00012054,2]
[323570485,1714087875798,-500.0,0.00012054,2]
[323570486,1714087875808,-500.0,0.00012054,2]
[323570487,1714087875818,-500.0,0.00012054,2]
[323570488,1714087875829,-500.0,0.00012054,2]
[323570489,1714087875839,-500.0,0.00012054,2]
[323570490,1714087875850,-500.0,0.00012054,2]
[323570491,1714087875859,-500.0,0.00012054,2]
[323570492,1714087875869,-270.80054412,0.00012054,2]
[323570493,1714087875879,-1304.86,0.00012054,2]
[323570494,1714087875888,-500.0,0.00012054,2]
[323570495,1714087875899,-500.0,0.00012054,2]
[323570496,1714087875910,-500.0,0.00012054,2]
[323570497,1714087875920,-500.0,0.00012054,2]
[323570498,1714087875930,-500.0,0.00012054,2]
[323570499,1714087875939,-1231.2,0.00012054,2]
[323570500,1714087875949,-500.0,0.00012054,2]
[323570501,1714087875959,-500.0,0.00012054,2]
[323570502,1714087875969,-500.0,0.00012054,2]
[323570503,1714087875979,-500.0,0.00012054,2]
[323570504,1714087875989,-500.0,0.00012054,2]
[323570505,1714087875999,-500.0,0.00012054,2]
[323570506,1714087876008,-500.0,0.00012054,2]
[323570507,1714087876018,-500.0,0.00012054,2]
[323570508,1714087876028,-500.0,0.00012054,2]
[323570509,1714087876040,-500.0,0.00012054,2]
[323570510,1714087876050,-500.0,0.00012054,2]
[323570511,1714087876061,-500.0,0.00012054,2]
[323570512,1714087876070,-500.0,0.00012054,2]
[323570513,1714087876080,-500.0,0.00012054,2]
[323570514,1714087876089,-500.0,0.00012054,2]
[323570515,1714087876100,-500.0,0.00012054,2]
[323570516,1714087876111,-500.0,0.00012054,2]
[323570517,1714087876123,-500.0,0.00012054,2]
[323570518,1714087876132,-500.0,0.00012054,2]
[323570519,1714087876142,-500.0,0.00012054,2]
[323570520,1714087876151,-500.0,0.00012054,2]
[323570521,1714087876161,-500.0,0.00012054,2]
[323570522,1714087876171,-500.0,0.00012054,2]
[323570523,1714087876182,-500.0,0.00012054,2]
[323570524,1714087876192,-1160.86,0.00012054,2]
[323570525,1714087876202,-500.0,0.00012054,2]
[323570526,1714087876211,-500.0,0.00012054,2]
[323570527,1714087876221,-500.0,0.00012054,2]
[323570528,1714087876230,-500.0,0.00012054,2]
[323570529,1714087876239,-500.0,0.00012054,2]
[323570530,1714087876248,-500.0,0.00012054,2]
[323570531,1714087876258,-1263.12,0.00012054,2]
[323570532,1714087876268,-500.0,0.00012054,2]
[323570533,1714087876277,-500.0,0.00012054,2]
[323570534,1714087876287,-230.260001,0.00012054,2]
[323570535,1714087876297,-150.0,0.00012054,2]
[323570536,1714087876307,-500.0,0.00012054,2]
[323570537,1714087876318,-500.0,0.00012054,2]
[323570538,1714087876329,-1067.82,0.00012054,2]
[323570539,1714087876339,-500.0,0.00012054,2]
[323570540,1714087876349,-500.0,0.00012054,2]
[323570541,1714087876361,-500.0,0.00012054,2]
[323570542,1714087876370,-500.0,0.00012054,2]
[323570543,1714087876381,-500.0,0.00012054,2]
[323570544,1714087876390,-500.0,0.00012054,2]
[323570545,1714087876399,-500.0,0.00012054,2]
[323570546,1714087876409,-500.0,0.00012054,2]
[323570547,1714087876419,-500.0,0.00012054,2]
[323570548,1714087876429,-500.0,0.00012054,2]
[323570549,1714087876438,-500.0,0.00012054,2]
[323570550,1714087876449,-500.0,0.00012054,2]
[323570551,1714087876458,-500.0,0.00012054,2]
[323570552,1714087876468,-554.37,0.00012054,2]
[323570553,1714087876477,-500.0,0.00012054,2]
[323570554,1714087876487,-500.0,0.00012054,2]
[323570555,1714087876497,-500.0,0.00012054,2]
[323570556,1714087876506,-500.0,0.00012054,2]
[323570557,1714087876515,-500.0,0.00012054,2]
[323570558,1714087876525,-500.0,0.00012054,2]
[323570559,1714087876535,-653.05,0.00012054,2]
[323570560,1714087876545,-500.0,0.00012054,2]
[323570561,1714087876555,-500.0,0.00012054,2]
[323570562,1714087876565,-500.0,0.00012054,2]
[323570563,1714087876575,-858.21,0.00012054,2]
[323570564,1714087876584,-789.88,0.00012054,2]
[323570565,1714087876594,-500.0,0.00012054,2]
[323570566,1714087876605,-500.0,0.00012054,2]
[323570567,1714087876615,-500.0,0.00012054,2]
[323570568,1714087876625,-500.0,0.00012054,2]
[323570569,1714087876635,-500.0,0.00012054,2]
[323570570,1714087876645,-500.0,0.00012054,2]
[323570571,1714087876656,-500.0,0.00012054,2]
[323570572,1714087876667,-500.0,0.00012054,2]
[323570573,1714087876676,-500.0,0.00012054,2]
[323570574,1714087876688,-500.0,0.00012054,2]
[323570575,1714087876700,-500.0,0.00012054,2]
[323570576,1714087876709,-500.0,0.00012054,2]
[323570577,1714087876719,-500.0,0.00012054,2]
[323570578,1714087876729,-500.0,0.00012054,2]
[323570579,1714087876739,-500.0,0.00012054,2]
[323570580,1714087876748,-500.0,0.00012054,2]
[323570581,1714087876758,-518.52,0.00012054,2]
[323570582,1714087876768,-500.0,0.00012054,2]
[323570583,1714087876778,-500.0,0.00012054,2]
[323570584,1714087876789,-500.0,0.00012054,2]
[323570585,1714087876800,-614.48,0.00012054,2]
[323570586,1714087876809,-500.0,0.00012054,2]
[323570587,1714087876819,-500.0,0.00012054,2]
[323570588,1714087876829,-500.0,0.00012054,2]
[323570589,1714087876838,-1297.2,0.00012054,2]
[323570590,1714087876848,-899.5,0.00012054,2]
[323570591,1714087876858,-1323.52,0.00012054,2]
[323570592,1714087876867,-500.0,0.00012054,2]
[323570593,1714087876877,-500.0,0.00012054,2]
[323570594,1714087876886,-542.32,0.00012054,2]
[323570595,1714087876896,-500.0,0.00012054,2]
[323570596,1714087876905,-1254.89,0.00012054,2]
[323570597,1714087876915,-500.0,0.00012054,2]
[323570598,1714087876924,-500.0,0.00012054,2]
[323570599,1714087876933,-507.01,0.00012054,2]
[323570600,1714087876943,-500.74,0.00012054,2]
[323570601,1714087876953,-500.0,0.00012054,2]
[323570602,1714087876962,-500.0,0.00012054,2]
[323570603,1714087876972,-500.0,0.00012054,2]
[323570604,1714087876981,-508.67,0.00012054,2]
[323570605,1714087876990,-500.0,0.00012054,2]
[323570606,1714087877000,-500.0,0.00012054,2]
[323570607,1714087877010,-510.52,0.00012054,2]
[323570608,1714087877019,-500.0,0.00012054,2]
[323570609,1714087877029,-500.0,0.00012054,2]
[323570610,1714087877044,-500.0,0.00012054,2]
[323570611,1714087877054,-500.0,0.00012054,2]
[323570612,1714087877064,-799.27,0.00012054,2]
[323570613,1714087877073,-500.0,0.00012054,2]
[323570614,1714087877083,-500.0,0.00012054,2]
[323570615,1714087877093,-1060.99,0.00012054,2]
[323570616,1714087877102,-500.0,0.00012054,2]
[323570617,1714087877112,-732.19,0.00012054,2]
[323570618,1714087877122,-519.71,0.00012054,2]
[323570619,1714087877131,-500.0,0.00012054,2]
[323570620,1714087877146,-630.54,0.00012054,2]
[323570621,1714087877155,-500.0,0.00012054,2]
[323570622,1714087877165,-500.0,0.00012054,2]
[323570623,1714087877174,-500.0,0.00012054,2]
[323570624,1714087877184,-500.0,0.00012054,2]
[323570625,1714087877194,-500.0,0.00012054,2]
[323570626,1714087877204,-500.0,0.00012054,2]
[323570627,1714087877213,-521.09,0.00012054,2]
[323570628,1714087877224,-500.0,0.00012054,2]
[323570629,1714087877233,-500.0,0.00012054,2]
[323570630,1714087877243,-500.0,0.00012054,2]
[323570631,1714087877253,-500.0,0.00012054,2]
[323570632,1714087877263,-500.0,0.00012054,2]
[323570633,1714087877273,-1435.03,0.00012054,2]
[323570634,1714087877284,-500.0,0.00012054,2]
[323570635,1714087877294,-500.0,0.00012054,2]
[323570636,1714087877304,-500.0,0.00012054,2]
[323570637,1714087877314,-500.0,0.00012054,2]
[323570638,1714087877325,-1216.1,0.00012054,2]
[323570639,1714087877334,-582.53,0.00012054,2]
[323570640,1714087877344,-500.0,0.00012054,2]
[323570641,1714087877353,-500.0,0.00012054,2]
[323570642,1714087877383,-500.0,0.00012054,2]
[323570643,1714087877399,-1169.35,0.00012054,2]
[323570644,1714087877409,-654.21,0.00012054,2]
[323570645,1714087877419,-507.14,0.00012054,2]
[323570646,1714087877428,-500.0,0.00012054,2]
[323570647,1714087877438,-500.0,0.00012054,2]
[323570648,1714087877448,-502.98,0.00012054,2]
[323570649,1714087877457,-500.0,0.00012054,2]
[323570650,1714087877467,-609.15,0.00012054,2]
[323570651,1714087877476,-500.0,0.00012054,2]
[323570652,1714087877485,-500.0,0.00012054,2]
[323570653,1714087877495,-500.0,0.00012054,2]
[323570654,1714087877504,-500.0,0.00012054,2]
[323570655,1714087877513,-711.98,0.00012054,2]
[323570656,1714087877522,-500.0,0.00012054,2]
[323570657,1714087877533,-165.34756444,0.00012054,2]
[323570658,1714087877543,-500.0,0.00012054,2]
[323570659,1714087877553,-614.23,0.00012054,2]
[323570660,1714087877757,-613.64768751,0.00012054,2]
[323570661,1714087877767,-525.29,0.00012054,2]
[323570662,1714087877776,-500.0,0.00012054,2]
[323570663,1714087877787,-530.15,0.00012054,2]
[323570664,1714087877796,-500.0,0.00012054,2]
[323570665,1714087877805,-500.0,0.00012054,2]
[323570666,1714087877814,-500.0,0.00012054,2]
[323570667,1714087877824,-500.0,0.00012054,2]
[323570668,1714087877833,-500.0,0.00012054,2]
[323570669,1714087877842,-933.13,0.00012054,2]
[323570670,1714087877851,-500.0,0.00012054,2]
[323570671,1714087877861,-500.0,0.00012054,2]
[323570672,1714087877871,-500.0,0.00012054,2]
[323570673,1714087877880,-679.44,0.00012054,2]
[323570674,1714087877889,-500.0,0.00012054,2]
[323570675,1714087877898,-500.0,0.00012054,2]
[323570676,1714087877908,-1065.39,0.00012054,2]
[323570677,1714087877917,-706.77,0.00012054,2]
[323570678,1714087877927,-500.0,0.00012054,2]
[323570679,1714087877936,-500.0,0.00012054,2]
[323570680,1714087877946,-500.0,0.00012054,2]
[323570681,1714087877955,-500.0,0.00012054,2]
[323570682,1714087877964,-500.0,0.00012054,2]
[323570683,1714087877972,-500.0,0.00012054,2]
[323570684,1714087877982,-500.0,0.00012054,2]
[323570685,1714087877991,-525.04,0.00012054,2]
[323570686,1714087878000,-500.0,0.00012054,2]
[323570687,1714087878009,-500.0,0.00012054,2]
[323570688,1714087878019,-500.0,0.00012054,2]
[323570689,1714087878028,-500.0,0.00012054,2]
[323570690,1714087878038,-500.0,0.00012054,2]
[323570691,1714087878047,-500.0,0.00012054,2]
[323570692,1714087878057,-500.0,0.00012054,2]
[323570693,1714087878067,-500.0,0.00012054,2]
[323570694,1714087878076,-500.0,0.00012054,2]
[323570695,1714087878086,-500.0,0.00012054,2]
[323570696,1714087878095,-523.95,0.00012054,2]
[323570697,1714087878105,-707.75,0.00012054,2]
[323570698,1714087878115,-500.0,0.00012054,2]
[323570699,1714087878125,-500.0,0.00012054,2]
[323570700,1714087878135,-500.0,0.00012054,2]
[323570701,1714087878144,-500.0,0.00012054,2]
[323570702,1714087878153,-500.0,0.00012054,2]
[323570703,1714087878162,-500.0,0.00012054,2]
[323570704,1714087878172,-500.0,0.00012054,2]
[323570705,1714087878181,-500.0,0.00012054,2]
[323570706,1714087878191,-500.0,0.00012054,2]
[323570707,1714087878200,-500.0,0.00012054,2]
[323570708,1714087878209,-500.0,0.00012054,2]
[323570709,1714087878218,-787.77,0.00012054,2]
[323570710,1714087878228,-652.41,0.00012054,2]
[323570711,1714087878237,-500.0,0.00012054,2]
[323570712,1714087878247,-500.0,0.00012054,2]
[323570713,1714087878256,-500.0,0.00012054,2]
[323570714,1714087878265,-500.0,0.00012054,2]
[323570715,1714087878275,-500.0,0.00012054,2]
[323570716,1714087878286,-1165.67,0.00012054,2]
[323570717,1714087878296,-500.0,0.00012054,2]
[323570718,1714087878305,-500.0,0.00012054,2]
[323570719,1714087878314,-500.0,0.00012054,2]
[323570720,1714087878324,-500.0,0.00012054,2]
[323570721,1714087878334,-655.71,0.00012054,2]
[323570722,1714087878343,-667.63,0.00012054,2]
[323570723,1714087878353,-500.0,0.00012054,2]
[323570724,1714087878362,-500.0,0.00012054,2]
[323570725,1714087878371,-958.55,0.00012054,2]
[323570726,1714087878381,-500.0,0.00012054,2]
[323570727,1714087878391,-500.0,0.00012054,2]
[323570728,1714087878400,-500.0,0.00012054,2]
[323570729,1714087878410,-721.74,0.00012054,2]
[323570730,1714087878420,-500.0,0.00012054,2]
[323570731,1714087878429,-610.41,0.00012054,2]
[323570732,1714087878439,-500.0,0.00012054,2]
[323570733,1714087878449,-500.0,0.00012054,2]
[323570734,1714087878458,-500.0,0.00012054,2]
[323570735,1714087878468,-500.0,0.00012054,2]
[323570736,1714087878477,-500.0,0.00012054,2]
[323570737,1714087878487,-500.0,0.00012054,2]
[323570738,1714087878497,-500.0,0.00012054,2]
[323570739,1714087878507,-500.0,0.00012054,2]
[323570740,1714087878517,-500.0,0.00012054,2]
[323570741,1714087878526,-1053.7,0.00012054,2]
[323570742,1714087878537,-731.88,0.00012054,2]
[323570743,1714087878545,-500.0,0.00012054,2]
[323570744,1714087878554,-500.0,0.00012054,2]
[323570745,1714087878563,-1325.63,0.00012054,2]
[323570746,1714087878572,-500.0,0.00012054,2]
[323570747,1714087878581,-527.58,0.00012054,2]
[323570748,1714087878591,-500.0,0.00012054,2]
[323570749,1714087878600,-500.0,0.00012054,2]
[323570750,1714087878609,-500.0,0.00012054,2]
[323570751,1714087878619,-1450.6,0.00012054,2]
[323570752,1714087878628,-500.0,0.00012054,2]
[323570753,1714087878637,-500.0,0.00012054,2]
[323570754,1714087878646,-500.0,0.00012054,2]
[323570755,1714087878656,-500.0,0.00012054,2]
[323570756,1714087878666,-500.0,0.00012054,2]
[323570757,1714087878675,-500.0,0.00012054,2]
[323570758,1714087878686,-500.0,0.00012054,2]